[Event "Titled Tuesday Blitz March 07 Early 2023"]
[White "Bharath Subramaniyam H"]
[Black "Martinez Ramirez, Lennis"]
[WhiteFideId "46634827"]
[BlackFideId "3509079"]
[WhiteElo "2395"]
[BlackElo "2439"]
[Result "1-0"]
[Round "08"]
[TimeControl "180+2"]
[Date "2023.03.07"]
[WhiteClock "0:01:03"]
[BlackClock "0:00:18"]

1. e4 {[%clk 0:02:59]}  c5 {[%clk 0:02:49]} 2. Nf3 {[%clk 0:02:57]}  d6 {[%clk 0:02:47]} 3. d4 {[%clk 0:02:56]}  cxd4 {[%clk 0:02:48]} 4. Nxd4 {[%clk 0:02:56]}  Nf6 {[%clk 0:02:48]} 5. Nc3 {[%clk 0:02:57]}  a6 {[%clk 0:02:48]} 6. h3 {[%clk 0:02:56]}  b5 {[%clk 0:02:42]} 7. g4 {[%clk 0:02:54]}  Bb7 {[%clk 0:02:42]} 8. Bg2 {[%clk 0:02:53]}  h6 {[%clk 0:02:37]} 9. O-O {[%clk 0:02:45]}  e6 {[%clk 0:02:28]} 10. Re1 {[%clk 0:02:44]}  Qc7 {[%clk 0:02:25]} 11. a4 {[%clk 0:02:37]}  b4 {[%clk 0:02:13]} 12. Nd5 {[%clk 0:02:33]}  exd5 {[%clk 0:02:11]} 13. exd5+ {[%clk 0:02:33]}  Kd8 {[%clk 0:02:12]} 14. Qe2 {[%clk 0:02:17]}  Nbd7 {[%clk 0:01:34]} 15. Nc6+ {[%clk 0:02:02]}  Bxc6 {[%clk 0:01:25]} 16. dxc6 {[%clk 0:02:03]}  Nc5 {[%clk 0:01:06]} 17. Bd2 {[%clk 0:01:51]}  a5 {[%clk 0:01:00]} 18. c3 {[%clk 0:01:36]}  b3 {[%clk 0:00:40]} 19. Be3 {[%clk 0:01:30]}  Ne6 {[%clk 0:00:37]} 20. Rad1 {[%clk 0:01:25]}  Be7 {[%clk 0:00:37]} 21. Qc4 {[%clk 0:01:12]}  Rb8 {[%clk 0:00:35]} 22. f4 {[%clk 0:01:11]}  Ke8 {[%clk 0:00:32]} 23. f5 {[%clk 0:01:09]}  Nc5 {[%clk 0:00:27]} 24. Bf4 {[%clk 0:01:06]}  Qb6 {[%clk 0:00:24]} 25. Rxe7+ {[%clk 0:01:04]}  Kxe7 {[%clk 0:00:23]} 26. Bxd6+ {[%clk 0:01:04]}  Ke8 {[%clk 0:00:23]} 27. Bxc5 {[%clk 0:01:04]}  Qc7 {[%clk 0:00:18]} 28. Qe2+ {[%clk 0:01:03]} 1-0


[Site "https://www.chess.com"]

[Event "Titled Tuesday Blitz March 07 Early 2023"]
[White "Hernandez Gonzalez, William"]
[Black "Yuan, Qingyu"]
[WhiteFideId "3509915"]
[BlackFideId "8609772"]
[WhiteElo "2374"]
[BlackElo "2359"]
[Result "1-0"]
[Round "08"]
[TimeControl "180+2"]
[Date "2023.03.07"]
[WhiteClock "0:00:17"]
[BlackClock "0:00:01"]

1. e4 {[%clk 0:03:00]}  e5 {[%clk 0:02:59]} 2. Nf3 {[%clk 0:03:00]}  Nc6 {[%clk 0:02:51]} 3. Bc4 {[%clk 0:02:59]}  Bc5 {[%clk 0:02:51]} 4. c3 {[%clk 0:02:59]}  Nf6 {[%clk 0:02:52]} 5. d4 {[%clk 0:02:59]}  exd4 {[%clk 0:02:52]} 6. b4 {[%clk 0:03:00]}  Be7 {[%clk 0:02:52]} 7. e5 {[%clk 0:02:54]}  Ng4 {[%clk 0:02:50]} 8. cxd4 {[%clk 0:02:51]}  Bxb4+ {[%clk 0:02:42]} 9. Bd2 {[%clk 0:02:51]}  Bxd2+ {[%clk 0:02:37]} 10. Nbxd2 {[%clk 0:02:51]}  O-O {[%clk 0:02:37]} 11. O-O {[%clk 0:02:47]}  d6 {[%clk 0:02:31]} 12. h3 {[%clk 0:02:46]}  Nh6 {[%clk 0:02:30]} 13. Rb1 {[%clk 0:02:37]}  Nf5 {[%clk 0:02:22]} 14. Nb3 {[%clk 0:02:10]}  dxe5 {[%clk 0:02:11]} 15. dxe5 {[%clk 0:02:10]}  Qe7 {[%clk 0:02:12]} 16. Re1 {[%clk 0:01:56]}  Rd8 {[%clk 0:01:51]} 17. Qe2 {[%clk 0:01:51]}  a6 {[%clk 0:01:36]} 18. Bd3 {[%clk 0:01:47]}  Be6 {[%clk 0:01:26]} 19. Be4 {[%clk 0:01:30]}  Nb4 {[%clk 0:01:16]} 20. Bxb7 {[%clk 0:01:26]}  Rab8 {[%clk 0:01:16]} 21. Be4 {[%clk 0:01:26]}  Nd5 {[%clk 0:01:07]} 22. Nbd4 {[%clk 0:01:17]}  Nxd4 {[%clk 0:00:55]} 23. Nxd4 {[%clk 0:01:16]}  Nc3 {[%clk 0:00:50]} 24. Bxh7+ {[%clk 0:01:06]}  Kf8 {[%clk 0:00:19]} 25. Qh5 {[%clk 0:01:07]}  Nxb1 {[%clk 0:00:16]} 26. Bxb1 {[%clk 0:01:08]}  Ke8 {[%clk 0:00:15]} 27. Nc6 {[%clk 0:01:03]}  Qf8 {[%clk 0:00:15]} 28. Be4 {[%clk 0:00:53]}  Rb6 {[%clk 0:00:11]} 29. Nxd8 {[%clk 0:00:50]}  Kxd8 {[%clk 0:00:12]} 30. f4 {[%clk 0:00:47]}  g6 {[%clk 0:00:11]} 31. Qd1+ {[%clk 0:00:45]}  Kc8 {[%clk 0:00:11]} 32. Qc2 {[%clk 0:00:45]}  Kb8 {[%clk 0:00:08]} 33. Rc1 {[%clk 0:00:45]}  Qe7 {[%clk 0:00:08]} 34. Kh1 {[%clk 0:00:38]}  Qd7 {[%clk 0:00:06]} 35. Rd1 {[%clk 0:00:37]}  Qe7 {[%clk 0:00:06]} 36. a4 {[%clk 0:00:36]}  a5 {[%clk 0:00:06]} 37. Qd2 {[%clk 0:00:34]}  Rb4 {[%clk 0:00:03]} 38. Qc2 {[%clk 0:00:33]}  Rb6 {[%clk 0:00:02]} 39. Qc3 {[%clk 0:00:32]}  Qb4 {[%clk 0:00:02]} 40. Rd8+ {[%clk 0:00:31]}  Bc8 {[%clk 0:00:02]} 41. Qd3 {[%clk 0:00:22]}  Qxa4 {[%clk 0:00:02]} 42. f5 {[%clk 0:00:20]}  Qb3 {[%clk 0:00:01]} 43. Qd7 {[%clk 0:00:17]} 1-0


[Site "https://www.chess.com"]

[Event "Titled Tuesday Blitz March 07 Early 2023"]
[White "Tan, Jun Ying"]
[Black "Harsh Suresh"]
[WhiteFideId "5710413"]
[BlackFideId "45018464"]
[WhiteElo "2089"]
[BlackElo "2227"]
[Result "1-0"]
[Round "08"]
[TimeControl "180+2"]
[Date "2023.03.07"]
[WhiteClock "0:01:13"]
[BlackClock "0:00:31"]

1. d4 {[%clk 0:03:00]}  g6 {[%clk 0:02:59]} 2. c4 {[%clk 0:03:00]}  Bg7 {[%clk 0:02:59]} 3. e4 {[%clk 0:03:01]}  Nc6 {[%clk 0:02:55]} 4. Be3 {[%clk 0:03:00]}  e5 {[%clk 0:02:54]} 5. Ne2 {[%clk 0:03:00]}  d6 {[%clk 0:02:53]} 6. Nbc3 {[%clk 0:03:00]}  Nf6 {[%clk 0:02:52]} 7. f3 {[%clk 0:02:55]}  exd4 {[%clk 0:02:52]} 8. Nxd4 {[%clk 0:02:55]}  Nxd4 {[%clk 0:02:53]} 9. Bxd4 {[%clk 0:02:55]}  O-O {[%clk 0:02:54]} 10. Qd2 {[%clk 0:02:52]}  Re8 {[%clk 0:02:53]} 11. O-O-O {[%clk 0:02:52]}  a6 {[%clk 0:02:50]} 12. Kb1 {[%clk 0:02:51]}  b5 {[%clk 0:02:49]} 13. cxb5 {[%clk 0:02:48]}  axb5 {[%clk 0:02:50]} 14. Bxb5 {[%clk 0:02:48]}  Bd7 {[%clk 0:02:50]} 15. Bc4 {[%clk 0:02:39]}  Rb8 {[%clk 0:02:46]} 16. g4 {[%clk 0:02:32]}  c5 {[%clk 0:02:40]} 17. Be3 {[%clk 0:02:27]}  Bxg4 {[%clk 0:02:38]} 18. Bg5 {[%clk 0:01:16]}  Bxf3 {[%clk 0:02:24]} 19. Rhf1 {[%clk 0:01:16]}  Nxe4 {[%clk 0:01:04]} 20. Bxf7+ {[%clk 0:01:14]}  Kh8 {[%clk 0:01:02]} 21. Bxd8 {[%clk 0:01:14]}  Nxd2+ {[%clk 0:00:57]} 22. Rxd2 {[%clk 0:01:15]}  Bxc3 {[%clk 0:00:51]} 23. Rxf3 {[%clk 0:01:13]}  Bxd2 {[%clk 0:00:31]} 24. Bf6# {[%clk 0:01:13]} 1-0


[Site "https://www.chess.com"]

[Event "Titled Tuesday Blitz March 07 Early 2023"]
[White "Santos Ruiz, Miguel"]
[Black "Crevatin, Leo"]
[WhiteFideId "22291482"]
[BlackFideId "1726307"]
[WhiteElo "2504"]
[BlackElo "2190"]
[Result "1-0"]
[Round "08"]
[TimeControl "180+2"]
[Date "2023.03.07"]
[WhiteClock "0:02:03"]
[BlackClock "0:01:37"]

1. e4 {[%clk 0:03:00]}  c5 {[%clk 0:02:53]} 2. Nf3 {[%clk 0:03:00]}  d6 {[%clk 0:02:52]} 3. Nc3 {[%clk 0:02:59]}  Nc6 {[%clk 0:02:50]} 4. Bc4 {[%clk 0:02:57]}  Nf6 {[%clk 0:02:50]} 5. d4 {[%clk 0:02:57]}  cxd4 {[%clk 0:02:49]} 6. Nxd4 {[%clk 0:02:58]}  Qb6 {[%clk 0:02:50]} 7. Nxc6 {[%clk 0:02:57]}  bxc6 {[%clk 0:02:50]} 8. O-O {[%clk 0:02:57]}  g6 {[%clk 0:02:46]} 9. Qe1 {[%clk 0:02:57]}  Nd7 {[%clk 0:02:37]} 10. Na4 {[%clk 0:02:57]}  Qc7 {[%clk 0:02:31]} 11. Qc3 {[%clk 0:02:57]}  e5 {[%clk 0:02:27]} 12. Qf3 {[%clk 0:02:49]}  Nb6 {[%clk 0:02:07]} 13. Nxb6 {[%clk 0:02:48]}  axb6 {[%clk 0:02:08]} 14. Qf6 {[%clk 0:02:49]}  Rg8 {[%clk 0:02:08]} 15. f4 {[%clk 0:02:42]}  b5 {[%clk 0:01:54]} 16. Bb3 {[%clk 0:02:39]}  Bg7 {[%clk 0:01:53]} 17. Qh4 {[%clk 0:02:37]}  Be6 {[%clk 0:01:41]} 18. Qxh7 {[%clk 0:02:08]}  Bxb3 {[%clk 0:01:37]} 19. Qxg8+ {[%clk 0:02:03]} 1-0


[Site "https://www.chess.com"]

[Event "Titled Tuesday Blitz March 07 Early 2023"]
[White "Krzyzanowski, Marcin"]
[Black "Krstulovic, Alex"]
[WhiteFideId "1132199"]
[BlackFideId "760056"]
[WhiteElo "2471"]
[BlackElo "2311"]
[Result "1-0"]
[Round "08"]
[TimeControl "180+2"]
[Date "2023.03.07"]
[WhiteClock "0:00:30"]
[BlackClock "0:00:03"]

1. c4 {[%clk 0:03:00]}  e5 {[%clk 0:02:58]} 2. Nc3 {[%clk 0:02:59]}  Nc6 {[%clk 0:02:58]} 3. Nf3 {[%clk 0:02:59]}  Bc5 {[%clk 0:02:59]} 4. e3 {[%clk 0:02:55]}  a6 {[%clk 0:02:52]} 5. Be2 {[%clk 0:02:51]}  d6 {[%clk 0:02:52]} 6. O-O {[%clk 0:02:51]}  Ba7 {[%clk 0:02:52]} 7. d4 {[%clk 0:02:51]}  Nge7 {[%clk 0:02:52]} 8. a3 {[%clk 0:02:47]}  O-O {[%clk 0:02:52]} 9. b4 {[%clk 0:02:47]}  Bg4 {[%clk 0:02:50]} 10. dxe5 {[%clk 0:02:35]}  dxe5 {[%clk 0:02:26]} 11. Qc2 {[%clk 0:02:20]}  Bf5 {[%clk 0:02:18]} 12. Qb3 {[%clk 0:02:14]}  Ng6 {[%clk 0:01:31]} 13. Rd1 {[%clk 0:02:10]}  Qc8 {[%clk 0:01:30]} 14. Nd5 {[%clk 0:02:04]}  e4 {[%clk 0:01:26]} 15. Nd2 {[%clk 0:01:56]}  Nh4 {[%clk 0:01:20]} 16. b5 {[%clk 0:01:42]}  axb5 {[%clk 0:00:16]} 17. cxb5 {[%clk 0:01:42]}  Na5 {[%clk 0:00:17]} 18. Ne7+ {[%clk 0:01:30]}  Kh8 {[%clk 0:00:14]} 19. Nxc8 {[%clk 0:00:59]}  Nxb3 {[%clk 0:00:13]} 20. Nxb3 {[%clk 0:01:00]}  Raxc8 {[%clk 0:00:13]} 21. Bb2 {[%clk 0:00:57]}  Be6 {[%clk 0:00:10]} 22. Nd4 {[%clk 0:00:56]}  Bd5 {[%clk 0:00:06]} 23. Rac1 {[%clk 0:00:54]}  Bb6 {[%clk 0:00:06]} 24. g3 {[%clk 0:00:47]}  Ng6 {[%clk 0:00:06]} 25. Nf5 {[%clk 0:00:48]}  Be6 {[%clk 0:00:06]} 26. Bxg7+ {[%clk 0:00:49]}  Kg8 {[%clk 0:00:06]} 27. Bxf8 {[%clk 0:00:49]}  Bxf5 {[%clk 0:00:07]} 28. Bc5 {[%clk 0:00:48]}  Ba5 {[%clk 0:00:07]} 29. Bb4 {[%clk 0:00:48]}  Bb6 {[%clk 0:00:07]} 30. a4 {[%clk 0:00:43]}  Ra8 {[%clk 0:00:07]} 31. a5 {[%clk 0:00:39]}  Bxa5 {[%clk 0:00:07]} 32. Bxa5 {[%clk 0:00:38]}  Rxa5 {[%clk 0:00:08]} 33. Rxc7 {[%clk 0:00:37]}  Ra2 {[%clk 0:00:09]} 34. Bc4 {[%clk 0:00:37]}  Rb2 {[%clk 0:00:09]} 35. Bxf7+ {[%clk 0:00:36]}  Kf8 {[%clk 0:00:09]} 36. Be6 {[%clk 0:00:31]}  Ne7 {[%clk 0:00:03]} 37. Bxf5 {[%clk 0:00:30]} 1-0


[Site "https://www.chess.com"]

[Event "Titled Tuesday Blitz March 07 Early 2023"]
[White "Strahov, Andrej"]
[Black "Smirnov, Pavel"]
[WhiteFideId "4165489"]
[BlackFideId "4123425"]
[WhiteElo "2600"]
[BlackElo "2519"]
[Result "0-1"]
[Round "08"]
[TimeControl "180+2"]
[Date "2023.03.07"]
[WhiteClock "0:00:06"]
[BlackClock "0:00:13"]

1. e4 {[%clk 0:03:00]}  e5 {[%clk 0:02:59]} 2. Nf3 {[%clk 0:02:59]}  Nc6 {[%clk 0:02:59]} 3. d4 {[%clk 0:02:58]}  exd4 {[%clk 0:02:59]} 4. Nxd4 {[%clk 0:02:59]}  Nf6 {[%clk 0:03:00]} 5. Nc3 {[%clk 0:02:59]}  Bb4 {[%clk 0:02:59]} 6. Nxc6 {[%clk 0:02:59]}  bxc6 {[%clk 0:03:00]} 7. Bd3 {[%clk 0:03:00]}  d5 {[%clk 0:03:01]} 8. exd5 {[%clk 0:03:00]}  O-O {[%clk 0:03:01]} 9. O-O {[%clk 0:03:01]}  Bg4 {[%clk 0:03:01]} 10. Be2 {[%clk 0:03:01]}  Bxe2 {[%clk 0:03:01]} 11. Nxe2 {[%clk 0:03:01]}  cxd5 {[%clk 0:03:02]} 12. Nd4 {[%clk 0:03:00]}  Qd7 {[%clk 0:03:00]} 13. Qf3 {[%clk 0:02:51]}  Be7 {[%clk 0:02:56]} 14. Re1 {[%clk 0:02:48]}  Rfe8 {[%clk 0:02:53]} 15. Nf5 {[%clk 0:02:46]}  Bf8 {[%clk 0:02:50]} 16. Bg5 {[%clk 0:02:44]}  Ne4 {[%clk 0:02:49]} 17. Be3 {[%clk 0:02:25]}  Re5 {[%clk 0:02:45]} 18. Ng3 {[%clk 0:02:20]}  Rae8 {[%clk 0:02:43]} 19. Nxe4 {[%clk 0:02:14]}  Rxe4 {[%clk 0:02:40]} 20. Red1 {[%clk 0:02:14]}  Qe6 {[%clk 0:02:38]} 21. c3 {[%clk 0:02:11]}  c5 {[%clk 0:02:37]} 22. h3 {[%clk 0:02:11]}  g6 {[%clk 0:02:33]} 23. Rd2 {[%clk 0:02:09]}  Re5 {[%clk 0:02:13]} 24. Rad1 {[%clk 0:02:05]}  Rf5 {[%clk 0:02:12]} 25. Qg4 {[%clk 0:01:58]}  a6 {[%clk 0:02:06]} 26. Qa4 {[%clk 0:01:55]}  Rc8 {[%clk 0:02:03]} 27. Qb3 {[%clk 0:01:52]}  Rd8 {[%clk 0:01:58]} 28. Qb7 {[%clk 0:01:42]}  h5 {[%clk 0:01:44]} 29. Qc7 {[%clk 0:01:33]}  Rd7 {[%clk 0:01:34]} 30. Qc8 {[%clk 0:01:33]}  Ra7 {[%clk 0:01:15]} 31. Qb8 {[%clk 0:01:16]}  Rd7 {[%clk 0:01:11]} 32. Bxc5 {[%clk 0:01:14]}  Re7 {[%clk 0:00:52]} 33. Bxe7 {[%clk 0:01:11]}  Qxe7 {[%clk 0:00:52]} 34. Rxd5 {[%clk 0:00:53]}  Rf6 {[%clk 0:00:41]} 35. Rd7 {[%clk 0:00:50]}  Qc5 {[%clk 0:00:37]} 36. Qc7 {[%clk 0:00:37]}  Qxf2+ {[%clk 0:00:34]} 37. Kh1 {[%clk 0:00:38]}  Qxb2 {[%clk 0:00:20]} 38. Rd8 {[%clk 0:00:35]}  Qa3 {[%clk 0:00:20]} 39. Qe5 {[%clk 0:00:30]}  Rf5 {[%clk 0:00:18]} 40. Qb8 {[%clk 0:00:27]}  Kg7 {[%clk 0:00:17]} 41. Rc8 {[%clk 0:00:18]}  Qe7 {[%clk 0:00:15]} 42. Rdd8 {[%clk 0:00:16]}  Qe1+ {[%clk 0:00:15]} 43. Kh2 {[%clk 0:00:16]}  Rf1 {[%clk 0:00:14]} 44. g3 {[%clk 0:00:06]}  Qf2# {[%clk 0:00:13]} 0-1


[Site "https://www.chess.com"]

[Event "Titled Tuesday Blitz March 07 Early 2023"]
[White "Cherniaiev, Tykhon"]
[Black "Czopor, Maciej"]
[WhiteFideId "14182360"]
[BlackFideId "21805431"]
[WhiteElo "2450"]
[BlackElo "2324"]
[Result "1/2-1/2"]
[Round "08"]
[TimeControl "180+2"]
[Date "2023.03.07"]
[WhiteClock "0:00:05"]
[BlackClock "0:00:18"]

1. Nf3 {[%clk 0:03:00]}  g6 {[%clk 0:02:54]} 2. d4 {[%clk 0:03:00]}  Bg7 {[%clk 0:02:54]} 3. c4 {[%clk 0:03:01]}  d6 {[%clk 0:02:53]} 4. Nc3 {[%clk 0:03:01]}  Nd7 {[%clk 0:02:50]} 5. g3 {[%clk 0:03:01]}  Ngf6 {[%clk 0:02:50]} 6. Bg2 {[%clk 0:03:01]}  O-O {[%clk 0:02:51]} 7. O-O {[%clk 0:02:58]}  a6 {[%clk 0:02:51]} 8. b3 {[%clk 0:02:57]}  c6 {[%clk 0:02:51]} 9. Bb2 {[%clk 0:02:57]}  Qc7 {[%clk 0:02:50]} 10. Qc2 {[%clk 0:02:57]}  b6 {[%clk 0:02:47]} 11. Rad1 {[%clk 0:02:57]}  Bb7 {[%clk 0:02:48]} 12. e4 {[%clk 0:02:44]}  e5 {[%clk 0:02:42]} 13. dxe5 {[%clk 0:02:40]}  dxe5 {[%clk 0:02:41]} 14. Ba3 {[%clk 0:02:40]}  Rfe8 {[%clk 0:02:39]} 15. Bd6 {[%clk 0:02:39]}  Qc8 {[%clk 0:02:39]} 16. Bh3 {[%clk 0:02:38]}  Qd8 {[%clk 0:01:38]} 17. Nxe5 {[%clk 0:02:20]}  Nxe5 {[%clk 0:01:39]} 18. Bxe5 {[%clk 0:02:20]}  Rxe5 {[%clk 0:01:39]} 19. Rxd8+ {[%clk 0:02:20]}  Rxd8 {[%clk 0:01:40]} 20. Rd1 {[%clk 0:02:20]}  Rde8 {[%clk 0:01:28]} 21. Bg2 {[%clk 0:01:44]}  c5 {[%clk 0:01:23]} 22. f4 {[%clk 0:01:40]}  Rxe4 {[%clk 0:01:23]} 23. Nxe4 {[%clk 0:01:39]}  Nxe4 {[%clk 0:01:20]} 24. Kf1 {[%clk 0:00:44]}  h5 {[%clk 0:01:03]} 25. Rd7 {[%clk 0:00:31]}  Bc8 {[%clk 0:01:03]} 26. Bxe4 {[%clk 0:00:19]}  Bxd7 {[%clk 0:01:03]} 27. Kg2 {[%clk 0:00:18]}  Bd4 {[%clk 0:01:00]} 28. h3 {[%clk 0:00:17]}  Kg7 {[%clk 0:00:59]} 29. Qd3 {[%clk 0:00:12]}  a5 {[%clk 0:00:58]} 30. a4 {[%clk 0:00:12]}  Re7 {[%clk 0:00:56]} 31. Qc2 {[%clk 0:00:12]}  f5 {[%clk 0:00:45]} 32. Bd5 {[%clk 0:00:09]}  Re3 {[%clk 0:00:46]} 33. Qd1 {[%clk 0:00:07]}  Kf6 {[%clk 0:00:37]} 34. h4 {[%clk 0:00:07]}  Be8 {[%clk 0:00:33]} 35. Qc2 {[%clk 0:00:07]}  Re1 {[%clk 0:00:28]} 36. Qd2 {[%clk 0:00:04]}  Re3 {[%clk 0:00:24]} 37. Qc2 {[%clk 0:00:05]}  Bd7 {[%clk 0:00:23]} 38. Qd1 {[%clk 0:00:05]}  Be8 {[%clk 0:00:18]} 39. Qc2 {[%clk 0:00:05]} 1/2-1/2


[Site "https://www.chess.com"]

[Event "Titled Tuesday Blitz March 07 Early 2023"]
[White "EREBUNI91"]
[Black "Sharapov, Evgeny"]
[BlackFideId "14103133"]
[WhiteElo "2734"]
[BlackElo "2367"]
[Result "1-0"]
[Round "08"]
[TimeControl "180+2"]
[Date "2023.03.07"]
[WhiteClock "0:00:15"]
[BlackClock "0:00:20"]

1. e4 {[%clk 0:02:57]}  c5 {[%clk 0:02:58]} 2. Nc3 {[%clk 0:02:56]}  Nc6 {[%clk 0:02:58]} 3. Bb5 {[%clk 0:02:57]}  Nd4 {[%clk 0:02:55]} 4. Nf3 {[%clk 0:02:57]}  g6 {[%clk 0:02:54]} 5. Nxd4 {[%clk 0:02:53]}  cxd4 {[%clk 0:02:54]} 6. Ne2 {[%clk 0:02:47]}  Bg7 {[%clk 0:02:53]} 7. O-O {[%clk 0:02:48]}  e6 {[%clk 0:02:50]} 8. c3 {[%clk 0:02:46]}  Qb6 {[%clk 0:02:50]} 9. Bd3 {[%clk 0:02:37]}  dxc3 {[%clk 0:02:48]} 10. bxc3 {[%clk 0:02:36]}  Ne7 {[%clk 0:02:48]} 11. Bc2 {[%clk 0:02:37]}  O-O {[%clk 0:02:47]} 12. d4 {[%clk 0:02:29]}  d5 {[%clk 0:02:47]} 13. Rb1 {[%clk 0:02:25]}  Qa5 {[%clk 0:02:38]} 14. Bf4 {[%clk 0:02:18]}  b6 {[%clk 0:02:28]} 15. Bd6 {[%clk 0:02:15]}  Re8 {[%clk 0:02:27]} 16. Ba4 {[%clk 0:02:13]}  Ba6 {[%clk 0:02:22]} 17. Bb4 {[%clk 0:02:09]}  Bxe2 {[%clk 0:02:21]} 18. Bxa5 {[%clk 0:01:58]}  Bxd1 {[%clk 0:02:20]} 19. Rfxd1 {[%clk 0:01:59]}  bxa5 {[%clk 0:02:19]} 20. Bxe8 {[%clk 0:01:59]}  Rxe8 {[%clk 0:02:19]} 21. e5 {[%clk 0:01:57]}  Rc8 {[%clk 0:02:16]} 22. Rb7 {[%clk 0:01:53]}  Nc6 {[%clk 0:02:12]} 23. f4 {[%clk 0:01:46]}  Kf8 {[%clk 0:02:05]} 24. g4 {[%clk 0:01:41]}  Ke8 {[%clk 0:02:05]} 25. f5 {[%clk 0:01:39]}  gxf5 {[%clk 0:01:48]} 26. gxf5 {[%clk 0:01:40]}  Nd8 {[%clk 0:01:48]} 27. Rxa7 {[%clk 0:01:30]}  exf5 {[%clk 0:01:46]} 28. Rd3 {[%clk 0:01:17]}  Bh6 {[%clk 0:01:22]} 29. Rh3 {[%clk 0:01:11]}  Bd2 {[%clk 0:01:13]} 30. Rxh7 {[%clk 0:01:09]}  Kf8 {[%clk 0:01:06]} 31. e6 {[%clk 0:00:59]}  Nxe6 {[%clk 0:01:04]} 32. Rhxf7+ {[%clk 0:00:59]}  Kg8 {[%clk 0:01:02]} 33. Rxf5 {[%clk 0:00:48]}  Bxc3 {[%clk 0:00:58]} 34. Ra6 {[%clk 0:00:45]}  Bxd4+ {[%clk 0:00:57]} 35. Kf1 {[%clk 0:00:45]}  Rf8 {[%clk 0:00:48]} 36. Rxf8+ {[%clk 0:00:39]}  Nxf8 {[%clk 0:00:48]} 37. Rxa5 {[%clk 0:00:40]}  Kf7 {[%clk 0:00:45]} 38. Rxd5 {[%clk 0:00:40]}  Ne6 {[%clk 0:00:45]} 39. a4 {[%clk 0:00:35]}  Ke7 {[%clk 0:00:42]} 40. a5 {[%clk 0:00:33]}  Ba7 {[%clk 0:00:40]} 41. h4 {[%clk 0:00:30]}  Nf4 {[%clk 0:00:36]} 42. Rb5 {[%clk 0:00:26]}  Kf6 {[%clk 0:00:34]} 43. h5 {[%clk 0:00:23]}  Be3 {[%clk 0:00:27]} 44. a6 {[%clk 0:00:19]}  Kg7 {[%clk 0:00:22]} 45. Rf5 {[%clk 0:00:16]}  Kh6 {[%clk 0:00:20]} 46. Rxf4 {[%clk 0:00:15]} 1-0


[Site "https://www.chess.com"]

[Event "Titled Tuesday Blitz March 07 Early 2023"]
[White "Rodriguez Fontecha, Marcos"]
[Black "Fernandez Guillen, Ernesto J."]
[WhiteFideId "2256576"]
[BlackFideId "3512428"]
[WhiteElo "2263"]
[BlackElo "2423"]
[Result "0-1"]
[Round "08"]
[TimeControl "180+2"]
[Date "2023.03.07"]
[WhiteClock "0:00:06"]
[BlackClock "0:00:22"]

1. e4 {[%clk 0:03:00]}  e5 {[%clk 0:02:57]} 2. Nf3 {[%clk 0:02:58]}  Nc6 {[%clk 0:02:55]} 3. d4 {[%clk 0:02:57]}  exd4 {[%clk 0:02:55]} 4. Bc4 {[%clk 0:02:57]}  g6 {[%clk 0:02:54]} 5. Bg5 {[%clk 0:02:41]}  Be7 {[%clk 0:02:52]} 6. Bxe7 {[%clk 0:02:31]}  Qxe7 {[%clk 0:02:53]} 7. O-O {[%clk 0:02:31]}  d6 {[%clk 0:02:50]} 8. Nxd4 {[%clk 0:02:30]}  Nf6 {[%clk 0:02:47]} 9. Nc3 {[%clk 0:02:29]}  O-O {[%clk 0:02:44]} 10. Re1 {[%clk 0:02:25]}  Qe5 {[%clk 0:02:13]} 11. Ndb5 {[%clk 0:01:56]}  Qc5 {[%clk 0:02:01]} 12. Bb3 {[%clk 0:01:52]}  Ng4 {[%clk 0:01:53]} 13. Qd2 {[%clk 0:01:46]}  Qe5 {[%clk 0:01:49]} 14. g3 {[%clk 0:01:35]}  Nxh2 {[%clk 0:01:15]} 15. Kxh2 {[%clk 0:01:28]}  Qh5+ {[%clk 0:01:10]} 16. Kg1 {[%clk 0:01:12]}  Ne5 {[%clk 0:01:07]} 17. Re3 {[%clk 0:01:09]}  Ng4 {[%clk 0:01:01]} 18. f3 {[%clk 0:00:52]}  Nxe3 {[%clk 0:00:50]} 19. Qxe3 {[%clk 0:00:53]}  c6 {[%clk 0:00:46]} 20. Nxd6 {[%clk 0:00:44]}  Be6 {[%clk 0:00:42]} 21. Bxe6 {[%clk 0:00:39]}  fxe6 {[%clk 0:00:43]} 22. f4 {[%clk 0:00:40]}  e5 {[%clk 0:00:41]} 23. f5 {[%clk 0:00:35]}  Rad8 {[%clk 0:00:37]} 24. Nc4 {[%clk 0:00:33]}  gxf5 {[%clk 0:00:35]} 25. exf5 {[%clk 0:00:18]}  Rxf5 {[%clk 0:00:36]} 26. Ne4 {[%clk 0:00:15]}  Rdf8 {[%clk 0:00:34]} 27. Ncd6 {[%clk 0:00:12]}  Rf3 {[%clk 0:00:33]} 28. Qe2 {[%clk 0:00:12]}  Qh3 {[%clk 0:00:26]} 29. Qc4+ {[%clk 0:00:10]}  Kh8 {[%clk 0:00:23]} 30. Qc5 {[%clk 0:00:05]}  Rxg3+ {[%clk 0:00:19]} 31. Nxg3 {[%clk 0:00:06]}  Qxg3+ {[%clk 0:00:20]} 32. Kh1 {[%clk 0:00:06]}  Qh3+ {[%clk 0:00:21]} 33. Kg1 {[%clk 0:00:07]}  Rg8+ {[%clk 0:00:21]} 34. Kf2 {[%clk 0:00:06]}  Rg2+ {[%clk 0:00:22]} 0-1


[Site "https://www.chess.com"]

[Event "Titled Tuesday Blitz March 07 Early 2023"]
[White "Vlasak, Lukas"]
[Black "De Silva, L M S T"]
[WhiteFideId "324752"]
[BlackFideId "9953698"]
[WhiteElo "2345"]
[BlackElo "2403"]
[Result "0-1"]
[Round "08"]
[TimeControl "180+2"]
[Date "2023.03.07"]
[WhiteClock "0:01:55"]
[BlackClock "0:02:08"]

1. e4 {[%clk 0:03:00]}  e5 {[%clk 0:02:57]} 2. Nf3 {[%clk 0:03:00]}  Nc6 {[%clk 0:02:57]} 3. Bb5 {[%clk 0:02:59]}  a6 {[%clk 0:02:58]} 4. Ba4 {[%clk 0:02:59]}  Nf6 {[%clk 0:02:58]} 5. O-O {[%clk 0:02:58]}  Be7 {[%clk 0:02:58]} 6. Re1 {[%clk 0:02:57]}  b5 {[%clk 0:02:58]} 7. Bb3 {[%clk 0:02:57]}  O-O {[%clk 0:02:59]} 8. a4 {[%clk 0:02:54]}  Bb7 {[%clk 0:02:52]} 9. d3 {[%clk 0:02:51]}  d6 {[%clk 0:02:50]} 10. Nc3 {[%clk 0:02:48]}  Nd4 {[%clk 0:02:47]} 11. Nxd4 {[%clk 0:02:44]}  exd4 {[%clk 0:02:48]} 12. Ne2 {[%clk 0:02:44]}  c5 {[%clk 0:02:49]} 13. axb5 {[%clk 0:02:41]}  axb5 {[%clk 0:02:49]} 14. Rxa8 {[%clk 0:02:41]}  Qxa8 {[%clk 0:02:50]} 15. Ng3 {[%clk 0:02:40]}  Re8 {[%clk 0:02:48]} 16. Nf5 {[%clk 0:02:39]}  Bf8 {[%clk 0:02:49]} 17. Bg5 {[%clk 0:02:36]}  Nxe4 {[%clk 0:02:24]} 18. dxe4 {[%clk 0:02:30]}  c4 {[%clk 0:02:24]} 19. Qg4 {[%clk 0:02:00]}  Rxe4 {[%clk 0:02:09]} 20. Rxe4 {[%clk 0:01:55]}  Qa1+ {[%clk 0:02:08]} 0-1


[Site "https://www.chess.com"]